bitfinex-derivatives/quotes_BTCF0:USTF0_20250828
["timestamp","ask_amount","ask_price","bid_price","bid_amount"]
[1756351674485,0.61859279,111980.0,111970.0,0.61367648]
[1756351674984,0.26859279,111980.0,111970.0,0.61367648]
[1756351675187,0.62859279,111980.0,111970.0,0.61367648]
[1756351675379,0.62859279,111980.0,111970.0,0.66080504]
[1756351679080,0.26859279,111980.0,111970.0,0.66080504]
[1756351679385,0.59859279,111980.0,111970.0,0.66080504]
[1756351680286,0.24859279,111980.0,111970.0,0.66080504]
[1756351681888,0.62859279,111980.0,111970.0,0.66080504]
[1756351693794,0.24859279,111980.0,111970.0,0.66080504]
[1756351694094,1.06799279,111980.0,111970.0,0.66080504]
[1756351695193,0.24859279,111980.0,111970.0,0.66080504]
[1756351696891,0.21447279,111980.0,111970.0,0.66080504]
[1756351697086,0.12288279,111980.0,111970.0,0.66080504]
[1756351697395,0.09793689,111980.0,111970.0,0.66080504]
[1756351697598,0.09793689,111980.0,111970.0,0.98080504]
[1756351698497,0.12006689,111980.0,111970.0,0.98080504]
[1756351698991,0.15435689,111980.0,111970.0,0.98080504]
[1756351699686,0.15435689,111980.0,111970.0,1.80008504]
[1756351699891,0.18281689,111980.0,111970.0,1.80008504]
[1756351700584,0.15435689,111980.0,111970.0,1.80008504]
[1756351700790,0.18281689,111980.0,111970.0,1.80008504]
[1756351702297,0.18281689,111980.0,111970.0,1.48008504]
[1756351702998,0.09793689,111980.0,111970.0,1.48008504]
[1756351703197,0.09793689,111980.0,111970.0,1.83008504]
[1756351703387,0.08186689,111980.0,111970.0,1.83008504]
[1756351703591,0.08724,111990.0,111970.0,1.83008504]
[1756351703796,0.48868578,111990.0,111980.0,0.56915274]
[1756351704096,0.48858578,111990.0,111980.0,0.16212959]
[1756351704300,0.48858578,111990.0,111980.0,0.58873233]
[1756351705795,0.48858578,111990.0,111980.0,0.16212959]
[1756351705993,0.48858578,111990.0,111980.0,0.58873233]
[1756351706396,0.49755714,111990.0,111980.0,0.58873233]
[1756351707100,0.56814923,111990.0,111980.0,0.58873233]
[1756351711197,0.99513923,111990.0,111980.0,1.47462947]
[1756351711394,1.43722923,111990.0,111980.0,0.67802673]
[1756351711895,1.43722923,111990.0,111980.0,0.58873233]
[1756351712204,1.06718923,111990.0,111980.0,0.58873233]
[1756351712803,0.24814923,111990.0,111980.0,0.58873233]
[1756351712999,1.39718923,111990.0,111980.0,0.67802673]
[1756351713603,0.24814923,111990.0,111980.0,0.67802673]
[1756351713804,1.06718923,111990.0,111980.0,0.67802673]
[1756351714104,1.39718923,111990.0,111980.0,0.58873233]
[1756351718300,1.03289923,111990.0,111980.0,0.58873233]
[1756351718611,1.06718923,111990.0,111980.0,0.67802673]
[1756351718908,0.21385923,111990.0,111980.0,1.41462947]
[1756351719210,0.19539923,111990.0,111980.0,1.41462947]
[1756351719407,0.13618345,111990.0,111980.0,1.41462947]
[1756351719712,0.11684345,111990.0,111980.0,1.41462947]
[1756351720016,0.07956345,111990.0,111980.0,1.41462947]
[1756351720310,0.80362,112000.0,111990.0,0.2318364]
[1756351720514,0.10937,112000.0,111990.0,1.43504188]
[1756351720708,0.96262,112000.0,111990.0,1.43504188]
[1756351720908,1.34262,112000.0,111990.0,1.08504188]
[1756351721411,1.31833,112000.0,111990.0,1.08504188]
[1756351721613,1.34262,112000.0,111990.0,1.08504188]
[1756351721812,0.10937,112000.0,111990.0,1.44504188]
[1756351722013,0.16223556,112010.0,112000.0,0.1472484]
[1756351722213,0.18693748,112010.0,112000.0,0.65843114]
[1756351722414,0.19579717,112010.0,112000.0,0.65843114]
[1756351722616,0.17089525,112010.0,112000.0,0.65843114]
[1756351723416,0.17089525,112010.0,112000.0,0.61078176]
[1756351723617,0.51089525,112010.0,112000.0,0.61078176]
[1756351727219,0.58384572,112010.0,112000.0,0.61078176]
[1756351728212,0.58340572,112010.0,112000.0,0.61078176]
[1756351729214,0.58340572,112010.0,112000.0,0.52150336]
[1756351729712,0.58340572,112010.0,112000.0,0.1434]
[1756351729919,0.58340572,112010.0,112000.0,0.46675336]
[1756351730216,0.58340572,112010.0,112000.0,0.12194]
[1756351730417,0.58340572,112010.0,112000.0,0.52441336]
[1756351731523,0.58340572,112010.0,112000.0,0.12194]
[1756351731821,0.58340572,112010.0,112000.0,0.52441336]
[1756351732819,0.58340572,112010.0,112000.0,0.49027336]
[1756351733026,0.58340572,112010.0,112000.0,0.43692336]
[1756351733617,0.58340572,112010.0,112000.0,0.14501]
[1756351735827,0.58340572,112010.0,112000.0,0.08735]
[1756351736622,0.14089,112000.0,111990.0,0.05889781]
[1756351736822,0.14089,112000.0,111990.0,0.03587781]
[1756351736823,1.33009,112000.0,111990.0,0.03587781]
[1756351737022,0.10191,111990.0,111980.0,0.52693295]
[1756351737227,0.48089,111990.0,111980.0,0.63190735]
[1756351737830,0.0002,112000.0,111990.0,0.06352]
[1756351738026,1.06027572,112010.0,112000.0,0.14408]
[1756351738228,1.41147842,112010.0,112000.0,0.52303336]
[1756351738428,0.26591842,112010.0,112000.0,0.61231176]
[1756351738627,1.06691572,112010.0,112000.0,0.61231176]
[1756351738828,1.06691572,112010.0,112000.0,0.52303336]
[1756351739033,1.06691572,112010.0,112000.0,0.61231176]
[1756351739831,1.06691572,112010.0,112000.0,0.52303336]
[1756351740933,1.41691572,112010.0,112000.0,0.52303336]
[1756351745540,1.44177965,112010.0,112000.0,0.52303336]
[1756351745746,1.41691572,112010.0,112000.0,0.52303336]
[1756351746347,1.44178377,112010.0,112000.0,0.52303336]
[1756351747342,1.44178377,112010.0,112000.0,0.57044674]
[1756351752950,0.26594377,112010.0,112000.0,0.57044674]
[1756351753249,0.26594377,112010.0,112000.0,0.90972514]
[1756351753544,0.24107572,112010.0,112000.0,0.90972514]
[1756351756041,0.56107572,112010.0,112000.0,0.90972514]
[1756351757754,0.56107572,112010.0,112000.0,0.82044674]
[1756351758344,0.56107572,112010.0,112000.0,0.90972544]
[1756351759354,0.58595933,112010.0,112000.0,0.90972544]
[1756351761951,0.58595933,112010.0,112000.0,0.4833587]
[1756351762155,0.58595933,112010.0,112000.0,0.90972544]
[1756351773454,0.58595933,112010.0,112000.0,0.2887]
[1756351773660,0.58595933,112010.0,112000.0,0.80434544]
[1756351773862,0.58595933,112010.0,112000.0,0.90814544]
[1756351775463,0.28595933,112010.0,112000.0,0.90814544]
[1756351775663,1.08679933,112010.0,112000.0,0.90814544]
[1756351776660,1.10679933,112010.0,112000.0,0.90814544]
[1756351777966,1.39679933,112010.0,112000.0,0.90814544]
[1756351778258,1.08679933,112010.0,112000.0,0.90814544]
[1756351778465,1.10679933,112010.0,112000.0,0.90814544]
[1756351778666,1.43679933,112010.0,112000.0,0.90814544]
[1756351778966,1.10679933,112010.0,112000.0,0.90814544]
[1756351780059,1.10679933,112010.0,112000.0,0.4817787]
[1756351780265,1.10679933,112010.0,112000.0,0.81886674]
[1756351782562,1.08679933,112010.0,112000.0,0.36042]
[1756351782762,2.07316607,112010.0,112000.0,0.01578]
[1756351782965,0.14357,112000.0,111990.0,0.14197]
[1756351783165,0.50357,112000.0,111990.0,0.65752344]
[1756351783363,0.14357,112000.0,111990.0,0.65752344]
[1756351783565,0.16357,112000.0,111990.0,1.08389018]
[1756351783964,0.10924,112000.0,111990.0,1.08389018]
[1756351784171,0.14357,112000.0,111990.0,1.08389018]
[1756351785873,0.14383,112000.0,111990.0,1.08389018]
[1756351787273,0.10307,112000.0,111990.0,1.08389018]
[1756351787772,0.12716,112000.0,111990.0,1.08389018]
[1756351788669,0.10307,112000.0,111990.0,1.08389018]
[1756351788879,0.03884,112000.0,111990.0,1.42389018]
[1756351789077,1.06492572,112010.0,112000.0,0.2310487]
[1756351789369,1.06472572,112010.0,112000.0,0.65741544]
[1756351791274,1.44472572,112010.0,112000.0,0.65741544]
[1756351791467,0.24460572,112010.0,112000.0,0.65741544]
[1756351791667,0.26460572,112010.0,112000.0,0.65741544]
[1756351791873,0.59460572,112010.0,112000.0,0.65741544]
[1756351792174,0.24460572,112010.0,112000.0,0.65741544]
[1756351793877,0.22623016,112010.0,112000.0,0.65741544]
[1756351794174,0.22623016,112010.0,112000.0,0.67760946]
[1756351796376,0.24623016,112010.0,112000.0,0.67760946]
[1756351797078,0.24623016,112010.0,112000.0,0.58833076]
[1756351797877,0.24623016,112010.0,112000.0,0.16196402]
[1756351798078,0.24623016,112010.0,112000.0,0.58833076]
[1756351799378,0.27116173,112010.0,112000.0,0.58833076]
[1756351802883,0.24623016,112010.0,112000.0,0.58833076]
[1756351803078,0.22623016,112010.0,112000.0,0.58833076]
[1756351803382,1.02142016,112010.0,112000.0,0.67760946]
[1756351803782,0.09717016,112010.0,112000.0,0.67760946]
[1756351803983,0.08181016,112010.0,112000.0,0.67760946]
[1756351804183,0.01536,112010.0,112000.0,0.67760946]
[1756351804385,0.14442,112010.0,112000.0,0.58833076]
[1756351805782,0.14442,112010.0,112000.0,0.67760946]
[1756351806986,0.14442,112010.0,112000.0,0.58833076]
[1756351807285,0.18935048,112010.0,112000.0,0.58833076]
[1756351808184,0.19819036,112010.0,112000.0,0.58833076]
[1756351808483,0.27010531,112010.0,112000.0,0.58833076]
[1756351809482,0.24517483,112010.0,112000.0,0.58833076]
[1756351811988,0.57517483,112010.0,112000.0,0.58833076]
[1756351813288,0.43075483,112010.0,112000.0,0.67760946]
[1756351813487,0.43075483,112010.0,112000.0,0.25124272]
[1756351813688,0.43075483,112010.0,112000.0,0.67760946]
[1756351815297,0.44611483,112010.0,112000.0,0.67760946]
[1756351815596,0.46842483,112010.0,112000.0,0.67760946]
[1756351816695,0.50046483,112010.0,112000.0,0.67760946]
[1756351816899,0.53025483,112010.0,112000.0,0.67760946]
[1756351817095,0.57275483,112010.0,112000.0,0.67760946]
[1756351817296,0.57275483,112010.0,112000.0,0.58833076]
[1756351817801,0.57275483,112010.0,112000.0,0.67760946]
[1756351818100,0.46842483,112010.0,112000.0,0.67760946]
[1756351819698,0.53025483,112010.0,112000.0,0.67760946]
[1756351819899,0.57275483,112010.0,112000.0,0.67760946]
[1756351821196,0.44611483,112010.0,112000.0,0.67760946]
[1756351823499,0.09611483,112010.0,112000.0,2.11824946]
[1756351823795,0.08075483,112010.0,112000.0,2.11824946]
[1756351823995,0.01780601,112030.0,112020.0,0.0892628]
[1756351824199,0.12785696,112050.0,112040.0,0.2358643]
[1756351824400,0.15989696,112050.0,112040.0,0.66223104]
[1756351824601,0.15989696,112050.0,112040.0,0.57298674]
[1756351824796,0.00873912,112050.0,112040.0,0.57298674]
[1756351825003,0.05763,112050.0,112040.0,0.57298674]
[1756351825198,0.07039818,112060.0,112050.0,0.08083]
[1756351825404,0.03779,112060.0,112050.0,0.99840348]
[1756351825591,0.0547,112070.0,112050.0,1.31116238]
[1756351825795,0.1371807,112070.0,112060.0,0.57203674]
[1756351826300,0.78869674,112070.0,112060.0,0.11206]
[1756351826491,1.61625674,112070.0,112060.0,0.06484]
[1756351826696,1.99625674,112070.0,112060.0,0.02877]
[1756351827292,1.97260902,112070.0,112060.0,0.02877]
[1756351828103,1.91260902,112070.0,112060.0,0.02877]
[1756351828602,1.98258684,112070.0,112060.0,0.02877]
[1756351828996,1.98258684,112070.0,112050.0,0.05287]
[1756351829201,0.51504902,112060.0,112050.0,0.08894]
[1756351829404,0.15413551,112060.0,112050.0,0.14567]
[1756351829791,0.88285453,112060.0,112050.0,0.14567]
[1756351830001,0.88285453,112060.0,112050.0,0.08894]
[1756351830501,0.88285453,112060.0,112050.0,0.06484]
[1756351830703,0.50413551,112060.0,112050.0,0.06484]
[1756351830905,0.88285453,112060.0,112050.0,0.06484]
[1756351831707,0.88285453,112060.0,112050.0,0.02877]
[1756351832705,0.88285453,112060.0,112040.0,0.05287]
[1756351832906,0.96321,112050.0,112040.0,0.14567]
[1756351833107,1.33321,112050.0,112040.0,0.11206]
[1756351833311,1.71192902,112050.0,112040.0,0.11206]
[1756351833505,1.71192902,112050.0,112040.0,0.06484]
[1756351833711,0.13633,112040.0,112030.0,0.13207829]
[1756351833912,0.13633,112040.0,112030.0,0.16558829]
[1756351834317,0.13633,112040.0,112030.0,0.14567]
[1756351838914,0.49633,112040.0,112030.0,0.14567]
[1756351841024,0.89338183,112040.0,112030.0,0.11206]
[1756351841521,0.89338183,112040.0,112030.0,0.06484]
[1756351842123,0.89338183,112040.0,112030.0,0.12255]
[1756351842525,0.89338183,112040.0,112030.0,0.06484]
[1756351843225,0.89338183,112040.0,112030.0,0.12255]
[1756351843525,0.89338183,112040.0,112030.0,0.06484]
[1756351844626,0.89338183,112040.0,112030.0,0.09845]
[1756351844814,1.71906183,112040.0,112030.0,0.14567]
[1756351846622,1.71906183,112040.0,112030.0,0.04528]
[1756351848728,0.89338183,112040.0,112030.0,0.04528]
[1756351849023,0.89338183,112040.0,112030.0,0.0652]
[1756351849434,1.71806183,112040.0,112030.0,0.14441]
[1756351849723,0.05612281,112040.0,112030.0,0.61238382]
[1756351849934,0.13016281,112040.0,112030.0,0.96238382]
[1756351850427,0.01833281,112040.0,112030.0,0.86238382]
[1756351850622,0.01833281,112040.0,112030.0,1.21238382]
[1756351850819,0.0001,112050.0,112040.0,0.1091668]
[1756351851024,0.01790551,112060.0,112050.0,0.2307689]
[1756351851226,0.05608551,112060.0,112050.0,0.52024902]
[1756351851429,0.10748551,112060.0,112050.0,0.52024902]
[1756351851623,0.13012551,112060.0,112050.0,0.52024902]
[1756351854634,0.15821551,112060.0,112050.0,0.14153]
[1756351854829,0.15821551,112060.0,112050.0,0.52024902]
[1756351855829,0.15821551,112060.0,112050.0,0.10865]
[1756351856034,0.17821551,112060.0,112050.0,0.10865]
[1756351856234,0.17821551,112060.0,112050.0,0.14153]
[1756351856429,0.20304243,112060.0,112050.0,0.14153]
[1756351857724,0.58176145,112060.0,112050.0,0.06232]
[1756351858030,0.20304243,112060.0,112050.0,0.06232]
[1756351858232,1.14176145,112060.0,112050.0,0.0424]
[1756351859233,1.14176145,112060.0,112050.0,0.08388]
[1756351859431,0.76304243,112060.0,112050.0,0.52024902]
[1756351859630,0.76304243,112060.0,112050.0,0.14153]
[1756351861038,0.76304243,112060.0,112050.0,0.06232]
[1756351861239,0.76304243,112060.0,112050.0,0.14153]
[1756351862741,1.14176145,112060.0,112040.0,0.05206]
[1756351862937,1.35376902,112050.0,112040.0,0.10865]
[1756351863140,1.72376902,112050.0,112040.0,0.14153]
[1756351863338,0.97505,112050.0,112040.0,0.14153]
[1756351863639,0.97505,112050.0,112040.0,0.52024902]
[1756351864043,0.97505,112050.0,112040.0,0.14153]
[1756351864242,1.31505,112050.0,112040.0,0.14153]
[1756351864642,0.97505,112050.0,112040.0,0.14153]
[1756351865944,1.33505,112050.0,112040.0,0.14153]
[1756351870140,0.02809,112040.0,112030.0,0.43087902]
[1756351870345,0.14041,112040.0,112030.0,0.14153]
[1756351870546,0.14041,112040.0,112030.0,0.2307848]
[1756351871945,0.14041,112040.0,112030.0,0.60950382]
[1756351873848,0.09258,112040.0,112030.0,0.60950382]
[1756351874247,0.11232,112040.0,112030.0,0.60950382]
[1756351875045,0.03828,112040.0,112030.0,0.60950382]
[1756351875349,0.02199,112050.0,112040.0,0.2307768]
[1756351875546,0.36,112050.0,112040.0,0.60949582]
[1756351875850,0.13190551,112060.0,112050.0,0.2317989]
[1756351876148,0.05692551,112060.0,112050.0,0.61051792]
[1756351876648,0.08942551,112060.0,112050.0,0.61051792]
[1756351876848,0.13180551,112060.0,112050.0,0.52127902]
[1756351877342,0.13180551,112060.0,112050.0,0.61051792]
[1756351877941,0.15979551,112060.0,112050.0,0.2317989]
[1756351878146,0.15979551,112060.0,112050.0,0.61051792]
[1756351878348,0.13180551,112060.0,112050.0,0.61051792]
[1756351879148,0.13180551,112060.0,112050.0,0.2317989]
[1756351879352,0.15979551,112060.0,112050.0,0.2317989]
[1756351879549,0.15979551,112060.0,112050.0,0.61051792]
[1756351879750,0.15979551,112060.0,112050.0,0.52127902]
[1756351879943,0.15979551,112060.0,112050.0,0.14256]
[1756351880148,0.15979551,112060.0,112050.0,0.52127902]
[1756351882546,0.13180551,112060.0,112050.0,0.14256]
[1756351882751,0.15979551,112060.0,112050.0,0.52127902]
[1756351885857,0.90851453,112060.0,112050.0,0.10895]
[1756351886151,1.15851453,112060.0,112050.0,0.0437]
[1756351886358,1.18336233,112060.0,112050.0,0.0437]
[1756351886558,1.18336233,112060.0,112040.0,0.07735343]
[1756351886759,0.98263,112050.0,112040.0,0.16217343]
[1756351886954,1.35263,112050.0,112040.0,0.16217343]
[1756351887356,0.98263,112050.0,112040.0,0.16217343]
[1756351887556,1.32263,112050.0,112040.0,0.16217343]
[1756351887757,1.36263,112050.0,112040.0,0.16217343]
[1756351888261,1.31263,112050.0,112040.0,0.16217343]
[1756351889262,1.30263,112050.0,112040.0,0.16217343]
[1756351889462,0.14199,112050.0,112040.0,0.16217343]
[1756351889760,0.98235,112050.0,112040.0,0.16217343]
[1756351890063,1.30235,112050.0,112040.0,0.16217343]
[1756351893769,1.29099,112050.0,112040.0,0.16217343]
[1756351894966,0.45199,112050.0,112040.0,0.16217343]
[1756351895168,1.33091,112050.0,112040.0,0.16217343]
[1756351897073,0.14199,112050.0,112040.0,0.25142003]
[1756351897263,1.29995,112050.0,112040.0,0.63013905]
[1756351897771,0.97995,112050.0,112040.0,0.63013905]
[1756351898369,0.97991,112050.0,112040.0,0.63013905]
[1756351903874,0.97991,112050.0,112040.0,0.61052562]
[1756351904568,0.97991,112050.0,112040.0,0.2318066]
[1756351904768,0.97991,112050.0,112040.0,0.52127902]
[1756351905074,0.97991,112050.0,112040.0,0.14256]
[1756351905773,0.97991,112050.0,112040.0,0.0437]
[1756351906177,1.62554902,112050.0,112030.0,0.08496]
[1756351906476,0.14463,112040.0,112030.0,0.5403045]
[1756351906677,0.16257426,112040.0,112030.0,0.5402045]
[1756351907072,0.16257426,112040.0,112030.0,0.91892352]
[1756351907276,0.16257426,112040.0,112030.0,0.10863]
[1756351907575,0.16257426,112040.0,112030.0,0.14095]
[1756351907776,0.16257426,112040.0,112030.0,0.51966902]
[1756351908778,0.16257426,112040.0,112030.0,0.14095]
[1756351911780,0.16257426,112040.0,112030.0,0.51966902]
[1756351911981,0.06262,112050.0,112040.0,0.2301966]
[1756351912178,0.37277,112050.0,112040.0,0.60891562]
[1756351912779,0.02277,112050.0,112040.0,0.60891562]
[1756351913083,0.03782,112050.0,112040.0,0.60891562]
[1756351915979,0.05572551,112060.0,112050.0,0.2301886]
[1756351916182,0.08912551,112060.0,112050.0,0.60890762]
[1756351916381,0.01780551,112060.0,112050.0,0.2301886]
[1756351916581,0.01780551,112060.0,112050.0,0.60890762]
[1756351916582,0.05562551,112060.0,112050.0,0.60890762]
[1756351916984,0.08912551,112060.0,112050.0,0.60890762]
[1756351917786,0.16243551,112060.0,112050.0,0.2301886]
[1756351918083,0.13381551,112060.0,112050.0,0.60890762]
[1756351918983,0.16243551,112060.0,112050.0,0.60890762]
[1756351919577,0.13381551,112060.0,112050.0,0.60890762]
[1756351920084,0.16243551,112060.0,112050.0,0.60890762]
[1756351921075,0.13381551,112060.0,112050.0,0.60890762]
[1756351921683,0.05562551,112060.0,112050.0,0.92890762]
[1756351921885,0.01780551,112060.0,112050.0,0.60890762]
[1756351922083,0.01780551,112060.0,112050.0,0.91890762]
[1756351922381,0.05562551,112060.0,112050.0,0.60890762]
[1756351922984,0.08912551,112060.0,112050.0,0.60890762]
[1756351924080,0.13381551,112060.0,112050.0,0.60890762]
[1756351925089,0.07007782,112070.0,112060.0,0.1740907]
[1756351925283,0.21081668,112070.0,112060.0,0.60889972]
[1756351925485,0.18598782,112070.0,112060.0,0.60889972]
[1756351926184,0.18598782,112070.0,112060.0,0.2301807]
[1756351926390,0.21460782,112070.0,112060.0,0.14095]
[1756351926692,0.21460782,112070.0,112060.0,0.51966902]
[1756351930893,0.09479364,112070.0,112060.0,0.60889972]
[1756351934294,0.21080364,112070.0,112060.0,0.60889972]
[1756351934498,0.18598782,112070.0,112060.0,0.60889972]
[1756351935500,0.18598782,112070.0,112060.0,0.2301807]
[1756351935696,0.21454782,112070.0,112060.0,0.2301807]
[1756351936001,0.21454782,112070.0,112060.0,0.14095]
[1756351936196,0.21454782,112070.0,112060.0,0.51966902]
[1756351936396,0.0001,112080.0,112070.0,0.2315227]
[1756351936609,0.03693,112090.0,112080.0,0.2315147]
[1756351936902,0.13105383,112100.0,112090.0,0.2315068]
[1756351937200,0.13095383,112100.0,112090.0,0.61022582]
[1756351937402,0.13095383,112100.0,112090.0,0.52101902]
[1756351937602,0.15951383,112100.0,112090.0,0.52101902]
[1756351938299,0.41951383,112100.0,112090.0,0.52101902]
[1756351938501,0.23979124,112100.0,112090.0,0.1423]
[1756351938705,0.25979124,112100.0,112090.0,0.52101902]
[1756351939006,0.52979124,112100.0,112090.0,0.1423]
[1756351939203,0.23979124,112100.0,112090.0,0.52101902]
[1756351939506,0.28456681,112100.0,112090.0,0.52101902]
[1756351940005,0.26456681,112100.0,112090.0,0.52101902]
[1756351941206,0.26456681,112100.0,112090.0,0.1423]
[1756351941407,0.26456681,112100.0,112090.0,0.52101902]
[1756351942003,0.23979124,112100.0,112090.0,0.61022582]
[1756351942202,0.23979124,112100.0,112090.0,0.2315068]
[1756351942401,0.23979124,112100.0,112090.0,0.61022582]
[1756351942598,0.23979124,112100.0,112090.0,0.52101902]
[1756351943003,0.57979124,112100.0,112090.0,0.10869]
[1756351943199,0.95851026,112100.0,112090.0,0.10869]
[1756351943404,0.60453544,112100.0,112090.0,0.1423]
[1756351943802,0.60453544,112100.0,112090.0,0.06229]
[1756351944005,0.60453544,112100.0,112090.0,0.0959]
[1756351944404,0.57979124,112100.0,112090.0,0.04317]
[1756351944608,0.82979124,112100.0,112090.0,0.04317]
[1756351945410,1.20851026,112100.0,112090.0,0.04317]
[1756351945614,1.23324859,112100.0,112090.0,0.02769]
[1756351945810,0.85452957,112100.0,112090.0,0.04317]
[1756351946314,0.85452957,112100.0,112090.0,0.06229]
[1756351946527,0.85452957,112100.0,112090.0,0.63004882]
[1756351946814,0.60452957,112100.0,112090.0,0.63004882]
[1756351947313,0.60452957,112100.0,112090.0,0.54084202]
[1756351948018,0.60452957,112100.0,112090.0,0.162123]
[1756351948218,0.60452957,112100.0,112090.0,0.54084202]
[1756351949415,0.57979124,112100.0,112090.0,0.54084202]
[1756351953624,0.60453678,112100.0,112090.0,0.54084202]
[1756351956626,0.57979124,112100.0,112090.0,0.54084202]
[1756351958426,0.60455404,112100.0,112090.0,0.54084202]
[1756351961024,0.60455404,112100.0,112090.0,0.019823]
[1756351961329,0.14138,112090.0,112080.0,0.1423]
[1756351961531,0.47138,112090.0,112080.0,0.1423]
[1756351961730,0.47138,112090.0,112080.0,0.52101902]
[1756351962630,0.47138,112090.0,112080.0,0.1423]
[1756351962827,0.47138,112090.0,112080.0,0.52101902]
[1756351963324,1.69853902,112090.0,112080.0,0.10869]
[1756351963521,1.72332999,112090.0,112070.0,0.4562516]
[1756351963829,0.14138,112080.0,112070.0,0.5411316]
[1756351964031,0.46138,112080.0,112070.0,0.5411316]
[1756351964224,0.14138,112080.0,112070.0,0.5411316]
[1756351964430,0.15918502,112080.0,112070.0,0.5411316]
[1756351964630,0.53918502,112080.0,112070.0,0.5411316]
[1756351964930,0.46918502,112080.0,112070.0,0.5411316]
[1756351966133,0.49399835,112080.0,112070.0,0.5411316]
[1756351966527,0.46918502,112080.0,112070.0,0.5411316]
[1756351966728,0.49399835,112080.0,112070.0,0.16241258]
[1756351967033,0.49399835,112080.0,112070.0,0.5411316]
[1756351968636,0.46918502,112080.0,112070.0,0.5411316]
[1756351968836,0.49399184,112080.0,112070.0,0.5411316]
[1756351969434,0.46918502,112080.0,112070.0,0.5411316]
[1756351970633,0.46918502,112080.0,112070.0,0.16241258]
[1756351970836,0.46918502,112080.0,112070.0,0.5411316]
[1756351971132,0.46918502,112080.0,112070.0,0.16241258]
[1756351971335,0.46918502,112080.0,112070.0,0.5411316]
[1756351971636,0.46918502,112080.0,112070.0,0.16241258]
[1756351971934,0.46918502,112080.0,112070.0,0.5411316]
[1756351972639,0.84790404,112080.0,112070.0,0.12880258]
[1756351972836,0.84790404,112080.0,112060.0,0.12119]
[1756351972837,0.08388,112070.0,112060.0,0.12119]
[1756351973041,0.08388,112070.0,112060.0,0.14089]
[1756351973042,1.72611902,112070.0,112060.0,0.14089]
[1756351973343,1.72611902,112070.0,112060.0,0.1089]
[1756351973546,1.72611902,112070.0,112060.0,0.06389]
[1756351974228,1.72611902,112070.0,112060.0,0.11971]
[1756351974430,1.72611902,112070.0,112060.0,0.06389]
[1756351975240,1.72611902,112070.0,112050.0,0.05161]
[1756351975443,0.52063902,112060.0,112050.0,0.1089]
[1756351975644,0.16192,112060.0,112050.0,0.14089]
[1756351975840,0.16192,112060.0,112050.0,0.1089]
[1756351976035,0.16192,112060.0,112050.0,0.14089]
[1756351976237,0.48192,112060.0,112050.0,0.14089]
[1756351976437,0.48192,112060.0,112050.0,0.1089]
[1756351976745,0.48192,112060.0,112050.0,0.14089]
[1756351977541,0.48192,112060.0,112050.0,0.1089]
[1756351977841,0.48192,112060.0,112050.0,0.06389]
[1756351980842,1.11063902,112060.0,112040.0,0.05161]
[1756351981041,0.9858,112050.0,112040.0,0.06389]
[1756351981240,1.67439902,112050.0,112040.0,0.06389]
[1756351981435,0.98568,112050.0,112040.0,0.06389]
[1756351982246,0.98544,112050.0,112040.0,0.06389]
[1756351982646,1.33544,112050.0,112040.0,0.06389]
[1756351983143,2.34287804,112050.0,112000.0,0.02383]
[1756351983346,0.52063902,112010.0,112000.0,0.08772]
[1756351983551,1.71379902,112010.0,111990.0,0.02383]
[1756351983745,0.52063902,112000.0,111980.0,0.02383]
[1756351983941,0.98504,111990.0,111980.0,0.1089]
[1756351984140,0.98504,111990.0,111980.0,0.08772]
[1756351984141,0.21161228,111990.0,111980.0,0.08772]
[1756351984344,1.05077228,111990.0,111980.0,0.06389]
[1756351984545,0.20761228,111990.0,111980.0,0.06389]
[1756351984746,1.05061228,111990.0,111980.0,0.11971]
[1756351984944,1.05061228,111990.0,111980.0,0.14089]
[1756351985549,1.4293313,111990.0,111980.0,0.14089]
[1756351986049,0.5863313,111990.0,111980.0,0.14089]
[1756351986249,1.4289713,111990.0,111980.0,0.14089]
[1756351986649,1.44008715,111990.0,111980.0,0.14089]
[1756351987341,1.06136813,111990.0,111980.0,0.14089]
[1756351987744,1.06144813,111990.0,111980.0,0.14089]
[1756351988451,0.21872813,111990.0,111980.0,0.14089]
[1756351988652,0.92132813,111990.0,111980.0,0.51960902]
[1756351989149,0.92132813,111990.0,111980.0,0.14089]
[1756351992242,0.21872813,111990.0,111980.0,0.14089]
[1756351992549,1.06824813,111990.0,111980.0,0.14089]
[1756351993452,1.06740813,111990.0,111980.0,0.14089]
[1756351994553,1.44612715,111990.0,111980.0,0.04419]
[1756351995051,0.59744715,111990.0,111980.0,0.06389]
[1756351995242,1.44576715,111990.0,111980.0,0.11971]
[1756351995445,1.06668813,111990.0,111980.0,0.11971]
[1756351995748,1.06668813,111990.0,111980.0,0.14089]
[1756351998956,1.06668813,111990.0,111980.0,0.06389]
[1756352000358,1.06532813,111990.0,111980.0,0.06389]
[1756352000550,1.06532813,111990.0,111980.0,0.04419]
[1756352000856,1.06528813,111990.0,111980.0,0.04419]
[1756352001056,1.44400715,111990.0,111980.0,0.04419]
[1756352001755,1.06528813,111990.0,111980.0,0.04419]
[1756352002156,1.06528813,111990.0,111980.0,0.06418]
[1756352003455,0.12818,111980.0,111970.0,0.50811689]
[1756352003658,0.14469,111980.0,111970.0,0.54173689]
[1756352004762,0.14469,111980.0,111970.0,0.63103949]
[1756352005157,0.1692784,111980.0,111970.0,0.63103949]
[1756352007164,0.1692784,111980.0,111970.0,0.54173689]
[1756352008768,0.1692784,111980.0,111970.0,0.16301787]
[1756352009067,0.1692784,111980.0,111970.0,0.63103949]
[1756352010265,0.1702784,111980.0,111970.0,0.63103949]
[1756352010964,0.1722784,111980.0,111970.0,0.63103949]
[1756352012264,0.1722784,111980.0,111970.0,0.16301787]
[1756352012967,0.5222784,111980.0,111970.0,0.16301787]
[1756352013173,0.90099742,111980.0,111970.0,0.12929787]
[1756352013672,0.94917566,111980.0,111970.0,0.12929787]
[1756352013967,0.94917566,111980.0,111970.0,0.10564787]
[1756352014672,1.79201566,111980.0,111970.0,0.16301787]
[1756352014872,1.41329664,111980.0,111970.0,0.16301787]
[1756352015371,0.57045664,111980.0,111970.0,0.16301787]
[1756352015577,1.06273664,111980.0,111970.0,0.16301787]
[1756352016178,1.44273664,111980.0,111970.0,0.16301787]
[1756352018675,0.14469,111970.0,111960.0,0.0001]
[1756352018880,0.61409809,111970.0,111960.0,0.0441]
[1756352019081,0.97409809,111970.0,111960.0,0.0441]
[1756352020881,0.59537907,111970.0,111960.0,0.0441]
[1756352021085,0.97409809,111970.0,111960.0,0.0441]
[1756352021380,0.92588174,111970.0,111960.0,0.0441]
[1756352021576,0.97409809,111970.0,111960.0,0.0441]
[1756352022381,0.92588174,111970.0,111960.0,0.0441]
[1756352022582,0.92688174,111970.0,111960.0,0.0441]
[1756352022784,0.92988174,111970.0,111960.0,0.0441]